bitfinex-derivatives/quotes_BNBF0:USTF0_20250128
["timestamp","ask_amount","ask_price","bid_price","bid_amount"]
[1738079624173,0.29678874,673.88,672.76,1.1070758]
[1738079624378,0.27284523,673.87,672.76,1.1070758]
[1738079624682,0.29679755,673.86,672.76,1.1070758]
[1738079624878,0.27284523,673.85,672.76,1.1070758]
[1738079625078,0.29680636,673.84,672.76,1.1070758]
[1738079625275,0.27284523,673.83,672.76,1.1070758]
[1738079626181,0.29681517,673.82,672.76,1.1070758]
[1738079626582,0.27284523,673.81,672.71,1.1070758]
[1738079626781,0.29682398,673.8,672.71,1.1070758]
[1738079627082,0.27284523,673.79,672.71,1.1070758]
[1738079628980,0.29683279,673.78,672.71,1.1070758]
[1738079629185,0.27284523,673.77,672.71,1.1070758]
[1738079629788,0.27284523,673.77,672.57,0.29736681]
[1738079629989,0.56978354,673.76,672.57,0.29736681]
[1738079630183,0.56978795,673.75,672.57,0.29736681]
[1738079630385,0.56979235,673.74,672.57,0.29736681]
[1738079630683,0.56979676,673.73,672.57,0.29736681]
[1738079630888,0.56980116,673.72,672.57,0.29736681]
[1738079631187,0.56980557,673.71,672.57,0.29736681]
[1738079631389,0.56980998,673.7,672.57,0.29736681]
[1738079631590,0.27294194,673.69,672.57,0.29736681]
[1738079631786,0.29687685,673.68,672.57,0.29736681]
[1738079631987,0.27294194,673.67,672.57,0.29736681]
[1738079632188,0.29687685,673.68,672.57,0.29736681]
[1738079632390,0.29688566,673.66,672.57,0.29736681]
[1738079645492,0.2729231,673.65,672.57,0.29736681]
[1738079646797,0.29688566,673.66,672.57,0.29736681]
[1738079646997,0.27292729,673.65,672.57,0.29736681]
[1738079648597,0.27294074,673.64,672.57,0.29736681]
[1738079648798,0.27294074,673.65,672.57,0.29736681]
[1738079648999,0.27294074,673.64,672.57,0.29736681]
[1738079649199,0.27294074,673.65,672.57,0.29736681]
[1738079649399,0.27294074,673.64,672.57,0.29736681]
[1738079649598,0.27294074,673.65,672.57,0.29736681]
[1738079649799,0.27294074,673.64,672.57,0.29736681]
[1738079650000,0.27294074,673.65,672.57,0.29736681]
[1738079650197,0.27294074,673.63,672.57,0.29736681]
[1738079650397,0.29688566,673.66,672.57,0.29736681]
[1738079650596,0.27292087,673.65,672.57,0.29736681]
[1738079651906,0.29688566,673.66,672.57,0.29736681]
[1738079652099,0.27291626,673.64,672.57,0.29736681]
[1738079652300,0.29688566,673.66,672.57,0.29736681]
[1738079652506,0.27290925,673.65,672.57,0.29736681]
[1738079652707,0.27290925,673.65,672.62,1.1070758]
[1738079653409,0.29688566,673.66,672.62,1.1070758]
[1738079653806,0.27290231,673.65,672.62,1.1070758]
[1738079654907,0.29688566,673.66,672.62,1.1070758]
[1738079655108,0.27290005,673.65,672.62,1.1070758]
[1738079655303,0.29688566,673.66,672.78,1.1070758]
[1738079656109,0.2729084,673.65,672.78,1.1070758]
[1738079657008,0.29688566,673.66,672.78,1.1070758]
[1738079657409,0.27291043,673.65,672.78,1.1070758]
[1738079657810,0.29688566,673.66,672.78,1.1070758]
[1738079658216,0.29688566,673.66,672.58,0.71879382]
[1738079658217,0.29688566,673.66,672.83,1.1070758]
[1738079663913,0.29688566,673.66,672.84,1.1070758]
[1738079667326,0.29688566,673.66,672.57,0.29736681]
[1738079667327,0.29688566,673.66,672.78,1.1070758]
[1738079670025,0.29688566,673.66,672.72,1.1070758]
[1738079670826,0.27294724,673.65,672.72,1.1070758]
[1738079672820,0.29688566,673.66,672.72,1.1070758]
[1738079673421,0.29688566,673.66,672.61,1.1070758]
[1738079675929,0.29688566,673.66,672.46,1.1070758]
[1738079676227,0.2730077,673.65,672.46,1.1070758]
[1738079678029,0.27302551,673.64,672.46,1.1070758]
[1738079678225,0.27302551,673.65,672.46,1.1070758]
[1738079678425,0.27302551,673.64,672.46,1.1070758]
[1738079678623,0.27302551,673.65,672.46,1.1070758]
[1738079679022,0.27302551,673.65,672.28,1.1070758]
[1738079682331,0.27302551,673.65,672.23,1.1070758]
[1738079684833,0.27302163,673.64,672.18,1.1070758]
[1738079685034,0.27302163,673.63,672.18,1.1070758]
[1738079685332,0.56992492,673.62,672.18,1.1070758]
[1738079685534,0.56992933,673.61,672.18,1.1070758]
[1738079685734,0.56993374,673.6,672.18,1.1070758]
[1738079685931,0.27302163,673.59,672.18,1.1070758]
[1738079686731,0.29692092,673.58,672.18,1.1070758]
[1738079686935,0.27302163,673.57,672.18,1.1070758]
[1738079687137,0.29692974,673.56,672.18,1.1070758]
[1738079687337,0.27302163,673.55,672.18,1.1070758]
[1738079687634,0.29693856,673.54,672.18,1.1070758]
[1738079687834,0.29693856,673.54,671.6,3.90868432]
[1738079687835,0.29693856,673.54,672.17,1.1070758]
[1738079690033,0.27303029,673.53,672.17,1.1070758]
[1738079690233,0.29694738,673.52,672.17,1.1070758]
[1738079690840,0.2730322,673.51,672.17,1.1070758]
[1738079691540,0.2730322,673.51,672.1,1.1070758]
[1738079692640,0.29695619,673.5,672.1,1.1070758]
[1738079692841,0.2730322,673.49,672.1,1.1070758]
[1738079693045,0.29696501,673.48,672.1,1.1070758]
[1738079693242,0.2730322,673.47,672.1,1.1070758]
[1738079693436,0.29697383,673.46,672.1,1.1070758]
[1738079693636,0.2730322,673.45,672.1,1.1070758]
[1738079693840,0.29698265,673.44,672.1,1.1070758]
[1738079694040,0.2730322,673.43,672.1,1.1070758]
[1738079694339,0.29699147,673.42,672.1,1.1070758]
[1738079694539,0.2730322,673.41,672.03,1.1070758]
[1738079694741,0.29700029,673.4,672.03,1.1070758]
[1738079694936,0.2730322,673.39,672.03,1.1070758]
[1738079695142,0.29700911,673.38,672.03,1.1070758]
[1738079696841,0.29700911,673.38,672.04,0.29760133]
[1738079702842,0.29700911,673.38,672.34,1.1070758]
[1738079706747,0.29700911,673.38,672.04,0.29760133]
[1738079706748,0.29700911,673.38,672.35,1.1070758]
[1738079706948,1.55098069,673.88,672.35,1.1070758]
[1738079707147,0.56972716,673.87,672.35,1.1070758]
[1738079707347,0.27293401,673.86,672.35,1.1070758]
[1738079707749,0.29680195,673.85,672.35,1.1070758]
[1738079707950,0.27293401,673.84,672.35,1.1070758]
[1738079708150,0.29681076,673.83,672.35,1.1070758]
[1738079708550,0.27293041,673.82,672.35,1.1070758]
[1738079708947,0.29681957,673.81,672.35,1.1070758]
[1738079709144,0.27293041,673.8,672.35,1.1070758]
[1738079709351,0.27293041,673.8,672.44,1.1070758]
[1738079709849,0.29682838,673.79,672.44,1.1070758]
[1738079710350,0.27293041,673.78,672.44,1.1070758]
[1738079710551,0.29683719,673.77,672.44,1.1070758]
[1738079710851,0.27293041,673.76,672.44,1.1070758]
[1738079711652,0.29684601,673.75,672.44,1.1070758]
[1738079711855,0.27293041,673.74,672.44,1.1070758]
[1738079712151,0.29684601,673.75,672.44,1.1070758]
[1738079712652,0.29684601,673.75,672.42,1.1070758]
[1738079713554,0.27293312,673.74,672.42,1.1070758]
[1738079713856,0.29684601,673.75,672.42,1.1070758]
[1738079715253,0.27293431,673.74,672.42,1.1070758]
[1738079715457,0.29684601,673.75,672.42,1.1070758]
[1738079716154,0.272924,673.74,672.43,1.1070758]
[1738079718554,0.29684601,673.75,672.43,1.1070758]
[1738079718749,0.27291804,673.73,672.43,1.1070758]
[1738079718956,0.27291804,673.72,672.43,1.1070758]
[1738079719155,0.27291804,673.74,672.52,1.1070758]
[1738079720252,0.27291804,673.71,672.52,1.1070758]
[1738079720758,0.27291804,673.74,672.52,1.1070758]
[1738079720950,0.29684601,673.75,672.52,1.1070758]
[1738079721155,0.27291804,673.74,672.52,1.1070758]
[1738079721353,0.29684601,673.75,672.52,1.1070758]
[1738079721659,0.27290935,673.74,672.52,1.1070758]
[1738079722060,0.27290935,673.74,672.45,1.1070758]
[1738079722953,0.29684601,673.75,672.45,1.1070758]
[1738079723156,0.27290555,673.74,672.45,1.1070758]
[1738079725161,0.27290555,673.74,672.46,1.1070758]
[1738079728957,0.27290555,673.74,672.39,1.1070758]
[1738079729762,0.29684601,673.75,672.39,1.1070758]
[1738079730057,0.27293468,673.74,672.39,1.1070758]
[1738079731059,0.29684601,673.75,672.39,1.1070758]
[1738079731959,0.29684601,673.75,672.55,1.1070758]
[1738079734069,0.29684601,673.75,672.47,1.1070758]
[1738079737970,0.29684601,673.75,672.43,1.1070758]
[1738079742068,0.29684601,673.75,672.51,1.1070758]
[1738079744172,0.29684601,673.75,672.52,1.1070758]
[1738079747673,0.29684601,673.75,672.54,1.1070758]
[1738079750675,0.29684601,673.75,672.49,1.1070758]
[1738079754875,0.29684601,673.75,672.47,1.1070758]
[1738079757877,0.29684601,673.75,672.04,0.29760133]
[1738079757878,0.29684601,673.75,672.33,1.1070758]
[1738079758070,0.27301307,673.74,672.33,1.1070758]
[1738079758272,0.29685922,673.72,672.33,1.1070758]
[1738079761080,0.29685922,673.72,672.29,1.1070758]
[1738079763876,0.29685922,673.72,672.29,1.40456646]
[1738079764380,0.29685922,673.72,672.4,1.1070758]
[1738079767278,0.29685922,673.72,672.43,1.1070758]
[1738079770084,0.29685922,673.72,672.46,1.1070758]
[1738079772887,0.29685922,673.72,672.42,1.1070758]
[1738079776891,0.29685922,673.72,672.56,1.1070758]
[1738079779693,0.29685922,673.72,672.59,1.1070758]
[1738079782693,0.29685922,673.72,672.6,1.1070758]
[1738079785392,0.29685922,673.72,672.51,1.1070758]
[1738079788003,0.29685922,673.72,672.53,1.1070758]
[1738079790701,0.29685922,673.72,672.57,1.1070758]
[1738079792798,0.29685922,673.72,672.66,1.1070758]
[1738079795899,0.29685922,673.72,672.7,1.1070758]
[1738079799202,0.29685922,673.72,672.29,0.29749066]
[1738079799203,0.29685922,673.72,672.51,1.1070758]
[1738079799400,0.29685922,673.72,672.51,1.40446914]
[1738079805111,0.27295235,673.71,672.51,1.40446914]
[1738079805507,0.56984719,673.7,672.51,0.29739334]
[1738079805701,0.27297915,673.69,672.51,0.29739334]
[1738079806007,0.29687685,673.68,672.51,0.29739334]
[1738079806207,0.27297915,673.67,672.51,0.29739334]
[1738079806411,0.29688566,673.66,672.51,0.29739334]
[1738079806606,0.27297915,673.65,672.51,0.29739334]
[1738079807009,0.29689448,673.64,672.51,0.29739334]
[1738079807407,0.27297915,673.63,672.51,0.29739334]
[1738079807705,0.29690329,673.62,672.51,0.29739334]
[1738079807910,0.27297915,673.61,672.51,0.29739334]
[1738079808211,0.27297915,673.61,672.56,1.1070758]
[1738079811409,0.29690329,673.62,672.51,0.29739334]
[1738079811410,0.29690329,673.62,672.52,1.1070758]
[1738079814712,0.29690329,673.62,672.51,0.29739334]
[1738079820717,0.29690329,673.62,672.45,1.1070758]
[1738079823317,0.29690329,673.62,672.13,1.1070758]
[1738079826020,0.29690329,673.62,672.08,1.1070758]
[1738079826216,0.29690329,673.62,672.09,0.29757919]
[1738079827221,0.27302739,673.61,672.09,0.29757919]
[1738079827521,0.29691211,673.6,672.09,0.29757919]
[1738079828222,0.27301555,673.59,672.09,0.29757919]
[1738079828423,0.29691211,673.6,672.09,0.29757919]
[1738079828625,0.29692092,673.58,672.09,0.29757919]
[1738079829221,0.29692092,673.58,672.16,1.1070758]
[1738079829519,0.29692092,673.58,672.17,0.29754377]
[1738079829922,0.27300794,673.57,672.17,0.29754377]
[1738079830123,0.29692092,673.58,672.17,0.29754377]
[1738079830725,0.27301007,673.57,672.17,0.29754377]
[1738079831427,0.29692092,673.58,672.17,0.29754377]
[1738079831628,0.27300566,673.57,672.17,0.29754377]
[1738079832329,0.27300566,673.57,672.25,1.1070758]
[1738079833026,0.29692092,673.58,672.25,1.1070758]
[1738079834125,0.27299155,673.57,672.25,1.1070758]
[1738079835323,0.27299155,673.57,672.33,1.1070758]
[1738079835629,0.27298222,673.56,672.33,1.1070758]
[1738079835830,0.27298222,673.55,672.33,1.1070758]
[1738079836026,0.27298222,673.54,672.33,1.1070758]
[1738079836228,0.27298732,673.57,672.33,1.1070758]
[1738079836527,0.27298656,673.56,672.33,1.1070758]
[1738079836724,0.27298656,673.57,672.33,1.1070758]
[1738079836930,0.27298656,673.56,672.33,1.1070758]
[1738079837230,0.29692092,673.58,672.33,1.1070758]
[1738079837731,0.27299296,673.57,672.33,1.1070758]
[1738079838027,0.27299296,673.57,672.48,1.1070758]
[1738079838234,0.29692092,673.58,672.48,1.1070758]
[1738079840532,0.29692092,673.58,672.5,1.1070758]
[1738079841032,0.27298957,673.57,672.5,1.1070758]
[1738079841229,0.29692092,673.58,672.5,1.1070758]
[1738079843329,0.27298934,673.57,672.5,1.1070758]
[1738079843826,0.27298934,673.57,672.18,0.71866803]
[1738079843827,0.27298934,673.57,672.51,1.1070758]
[1738079844334,0.29692092,673.58,672.51,1.1070758]
[1738079844335,0.27302135,673.56,672.51,1.1070758]
[1738079844530,0.27302135,673.57,672.51,1.1070758]
[1738079844732,0.56995109,673.56,672.51,1.1070758]
[1738079844931,0.5699555,673.55,672.51,1.1070758]
[1738079845134,0.56995991,673.54,672.51,1.1070758]
[1738079845336,0.29694297,673.53,672.51,1.1070758]
[1738079845634,0.27302817,673.52,672.51,1.1070758]
[1738079845835,0.29695178,673.51,672.51,1.1070758]
[1738079846735,0.29695178,673.51,672.17,1.40461957]
[1738079846736,0.29695178,673.51,672.37,1.1070758]
[1738079850134,0.29695178,673.51,672.17,0.29754377]
[1738079852938,0.2730568,673.5,672.17,0.29754377]
[1738079853440,0.2969606,673.49,672.17,0.29754377]
[1738079853740,0.27305248,673.48,672.17,0.29754377]
[1738079854041,0.57001692,673.47,672.17,0.29754377]
[1738079854246,0.57002133,673.46,672.17,0.29754377]
[1738079854546,0.57002574,673.45,672.17,0.29754377]
[1738079854842,0.2731808,673.44,672.16,1.1070758]
[1738079856039,1.55202402,673.43,672.32,1.1070758]
[1738079856241,0.2731808,673.42,672.32,1.1070758]
[1738079857140,0.2731808,673.41,672.32,1.1070758]
[1738079857336,0.2731808,673.4,672.32,1.1070758]
[1738079857540,0.2731808,673.42,672.32,1.1070758]
[1738079857841,0.2731808,673.41,672.32,1.1070758]
[1738079858038,0.2731808,673.4,672.32,1.1070758]
[1738079858345,0.29700911,673.38,672.32,1.1070758]
[1738079858546,0.2731808,673.37,672.32,1.1070758]
[1738079858743,0.29702235,673.35,672.32,1.1070758]
[1738079858943,0.2731808,673.34,672.32,1.1070758]
[1738079859138,0.27322672,673.33,672.32,1.1070758]
[1738079859342,0.29703558,673.32,671.63,1.1070758]
[1738079859544,0.27322672,673.31,671.64,0.29777857]
[1738079859944,0.29704881,673.29,671.64,0.29777857]
[1738079860144,0.27322672,673.28,671.64,0.29777857]
[1738079861342,0.29706205,673.26,671.64,0.29777857]
[1738079861542,0.27322672,673.25,671.64,0.29777857]
[1738079864242,0.27322672,673.24,671.64,0.29777857]
[1738079864447,0.27322672,673.25,671.64,0.29777857]
[1738079864646,0.27322672,673.24,671.64,0.29777857]
[1738079864847,0.27322672,673.23,671.64,0.29777857]
[1738079865146,0.29706205,673.26,671.64,0.29777857]
[1738079865147,0.27322672,673.22,671.64,0.29777857]
[1738079865346,0.27322672,673.21,671.64,0.29777857]
[1738079865648,0.27322672,673.2,671.64,0.29777857]
[1738079865947,0.27322672,673.19,671.64,0.29777857]
[1738079866142,0.27322672,673.18,671.64,0.29777857]
[1738079866349,0.27322672,673.17,671.64,0.29777857]
[1738079866547,0.27322672,673.18,671.64,0.29777857]
[1738079866747,0.27322672,673.17,671.64,0.29777857]
[1738079866946,0.27322672,673.16,671.64,0.29777857]
[1738079867146,0.27322672,673.15,671.64,0.29777857]
[1738079867346,0.27322672,673.18,671.64,0.29777857]
[1738079867949,1.55307454,673.19,671.64,0.29777857]
[1738079868150,0.27328692,673.18,671.64,0.29777857]
[1738079869445,1.55307454,673.19,671.64,0.29777857]
[1738079869652,0.27325354,673.17,671.64,0.29777857]
[1738079869950,0.27325354,673.16,671.64,0.29777857]
[1738079870143,0.27325354,673.15,671.64,0.29777857]
[1738079870348,0.27325354,673.18,671.64,0.29777857]
[1738079870548,0.27325354,673.17,671.64,0.29777857]
[1738079870744,0.27325354,673.18,671.64,0.29777857]
[1738079870950,0.27325354,673.17,671.64,0.29777857]
[1738079871150,0.27325354,673.18,671.64,0.29777857]
[1738079871351,0.27325354,673.17,671.64,0.29777857]
[1738079871547,0.27325354,673.18,671.64,0.29777857]
[1738079871754,0.27325354,673.17,671.64,0.29777857]
[1738079871953,0.27325354,673.18,671.64,0.29777857]
[1738079872960,0.2732566,673.17,671.64,0.29777857]
[1738079873157,0.2732566,673.18,671.64,0.29777857]
[1738079873363,0.2732566,673.17,671.64,0.29777857]
[1738079873554,0.2732566,673.16,671.64,0.29777857]
[1738079873758,0.2732566,673.15,671.64,0.29777857]
[1738079873960,0.2732566,673.14,671.64,0.29777857]
[1738079874160,0.29712384,673.12,671.64,0.29777857]
[1738079874358,0.2732566,673.11,671.64,0.29777857]
[1738079874762,0.29713708,673.09,671.64,0.29777857]
[1738079874965,0.2732566,673.08,671.64,0.29777857]
[1738079875159,0.29714591,673.07,671.64,0.29777857]
[1738079875362,0.2732566,673.06,671.64,0.29777857]
[1738079875659,0.29715474,673.05,671.64,0.29777857]
[1738079875863,0.2732566,673.04,671.64,0.29777857]
[1738079876063,0.57042017,673.03,671.64,0.29777857]
[1738079876263,0.29716798,673.02,671.64,0.29777857]
[1738079876463,0.27326015,673.01,671.64,0.29777857]
[1738079876663,0.29716798,673.02,671.64,0.29777857]
[1738079876664,0.57043697,673.0,671.64,0.29777857]
[1738079876865,0.57044138,672.99,671.64,0.29777857]
[1738079877066,0.5704458,672.98,671.64,0.29777857]
[1738079877261,0.27326015,672.97,671.64,0.29777857]
[1738079877463,0.29719448,672.96,671.64,0.29777857]
[1738079877663,0.27326015,672.95,671.64,0.29777857]
[1738079878064,0.5704425,672.94,671.64,0.29777857]
[1738079878264,0.27323919,672.93,671.64,0.29777857]
[1738079879564,0.29720331,672.94,671.64,0.29777857]
[1738079879761,0.29721215,672.92,671.64,0.29777857]
[1738079880066,0.2732459,672.91,671.64,0.29777857]
[1738079880966,0.29721215,672.92,671.64,0.29777857]
[1738079881165,0.27324013,672.91,671.64,0.29777857]
[1738079882462,0.29721215,672.92,671.64,0.29777857]
[1738079892172,0.29721215,672.92,671.75,1.1070758]
[1738079895074,0.29721215,672.92,671.69,1.1070758]
[1738079898276,0.29721215,672.92,671.64,0.29777857]
[1738079904284,0.29721215,672.92,671.68,1.1070758]
[1738079904485,0.29721215,672.92,671.69,0.2977564]
[1738079909587,0.29721215,672.92,671.81,1.1070758]
[1738079912586,0.29721215,672.92,671.81,1.40477901]
[1738079913088,0.29721215,672.92,671.94,1.1070758]
[1738079915687,0.29721215,672.92,672.07,1.1070758]
[1738079920195,0.29721215,672.92,672.1,1.1070758]
[1738079922289,1.10429276,673.36,672.1,1.1070758]
[1738079922492,0.29702235,673.35,672.1,1.1070758]
[1738079922894,0.29702235,673.35,672.2,1.1070758]
[1738079929701,0.29702235,673.35,672.19,1.1070758]
[1738079933206,0.29702235,673.35,672.22,1.1070758]
[1738079936305,0.29702235,673.35,672.17,1.1070758]
[1738079936501,0.29702235,673.35,672.18,0.29753934]
[1738079939005,0.29702235,673.35,672.18,1.40461514]
[1738079942601,0.29702235,673.35,672.18,0.29753934]
[1738079945106,0.29702235,673.35,672.18,1.40213466]
[1738079948210,0.29702235,673.35,672.23,1.10459532]
[1738079948412,0.29702235,673.35,672.24,0.29751279]
[1738079951308,0.29702235,673.35,672.32,1.10459532]
[1738079954316,0.29702235,673.35,672.39,1.10459532]
[1738079957615,0.29702235,673.35,672.49,1.10459532]
[1738079959211,1.10152264,673.87,672.49,1.10459532]
[1738079959412,0.56973343,673.86,672.49,1.10459532]
[1738079959714,0.56973783,673.85,672.49,1.10459532]
[1738079960013,0.56974224,673.84,672.49,1.10459532]
[1738079960210,0.56974664,673.83,672.49,1.10459532]
[1738079960413,0.56975105,673.82,672.49,1.10459532]
[1738079960616,0.56975545,673.81,672.49,1.10459532]
[1738079960907,1.10152264,673.87,672.49,1.10459532]
[1738079960908,0.56975986,673.8,672.49,1.10459532]
[1738079961110,0.56976426,673.79,672.49,1.10459532]
[1738079961308,0.56976867,673.78,672.65,1.10459532]
[1738079961520,0.56977307,673.77,672.65,1.10459532]
[1738079961712,0.56977748,673.76,672.65,1.10459532]
[1738079961913,0.56978189,673.75,672.65,1.10459532]
[1738079962109,0.56978629,673.74,672.65,1.10459532]
[1738079962316,0.5697907,673.73,672.65,1.10459532]
[1738079962615,0.5697951,673.72,672.65,1.10459532]
[1738079962815,0.56979951,673.71,672.65,1.10459532]
[1738079963015,0.27293588,673.7,672.65,1.10459532]
[1738079964013,0.27293588,673.7,672.25,0.71760796]
[1738079964014,0.27293588,673.7,672.67,1.10459532]
[1738079964614,0.27293662,673.69,672.67,1.10459532]
[1738079964815,0.27293662,673.7,672.67,1.10459532]
[1738079965012,0.27293662,673.69,672.67,1.10459532]
[1738079965217,0.27293662,673.68,672.67,1.10459532]
[1738079965520,0.27293662,673.67,672.67,1.10459532]
[1738079965721,0.27293662,673.66,672.67,1.10459532]
[1738079966021,0.27293662,673.65,672.67,1.10459532]
[1738079966220,0.29686363,673.71,672.67,1.10459532]
[1738079966419,0.27293457,673.7,672.67,1.10459532]
[1738079966920,0.29686363,673.71,672.67,1.10459532]
[1738079966921,0.29687244,673.69,672.67,1.10459532]
[1738079967220,0.29687244,673.69,672.7,1.10459532]
[1738079970515,0.29687244,673.69,672.24,0.29751279]
[1738079978118,0.27301118,673.68,672.24,0.29751279]
[1738079978925,0.29688126,673.67,672.24,0.29751279]
[1738079979126,0.29688126,673.67,672.29,1.10459532]
[1738079979526,0.27300322,673.66,672.29,1.10459532]
[1738079979725,0.29689007,673.65,672.29,1.10459532]
[1738079981525,0.29689007,673.65,672.35,1.10459532]
[1738079982128,0.27300677,673.64,672.35,1.10459532]
[1738079982427,0.56990354,673.63,672.35,1.10459532]
[1738079982623,0.56990794,673.62,672.35,1.10459532]
[1738079982821,0.56991235,673.61,672.35,1.10459532]
[1738079983031,0.56991676,673.6,672.35,1.10459532]
[1738079983228,0.56992117,673.59,672.35,1.10459532]
[1738079983429,0.29692092,673.58,672.35,1.10459532]
[1738079983628,0.27300465,673.57,672.35,1.10459532]
[1738079983824,0.29692974,673.56,672.35,1.10459532]
[1738079984029,0.27300465,673.55,672.35,1.10459532]
[1738079984230,0.27300465,673.55,672.41,1.10459532]
[1738079985031,0.29692974,673.56,672.41,1.10459532]
[1738079985232,0.27299747,673.54,672.41,1.10459532]
[1738079985431,0.27299747,673.53,672.41,1.10459532]
[1738079985632,0.27299747,673.52,672.41,1.10459532]
[1738079985832,0.27299747,673.51,672.41,1.10459532]
[1738079986131,0.27299747,673.5,672.41,1.10459532]
[1738079986332,0.27300242,673.49,672.41,1.10459532]
[1738079986527,0.27300242,673.48,672.41,1.10459532]
[1738079986729,0.27300242,673.55,672.41,1.10459532]
[1738079986929,0.27300242,673.55,672.5,1.10459532]
[1738079990235,0.27299607,673.54,672.5,1.10459532]
[1738079990430,0.27299607,673.55,672.5,1.10459532]
[1738079990635,0.29692974,673.56,672.5,1.10459532]
[1738079991636,0.27297935,673.55,672.5,1.10459532]
[1738079991836,0.29692974,673.56,672.5,1.10459532]
[1738079993337,0.29692974,673.56,672.53,1.10459532]
[1738079996739,0.29692974,673.56,672.52,1.10459532]
[1738079999843,0.29692974,673.56,672.47,1.10459532]
[1738080001145,0.29692974,673.56,672.24,0.29751279]
[1738080022457,0.29692974,673.56,672.56,1.10951005]
[1738080026862,0.29692974,673.56,672.64,1.10951005]
[1738080030262,0.29692974,673.56,672.69,1.10951005]
[1738080032559,0.29692974,673.56,672.75,1.10951005]
[1738080034965,0.27298232,673.55,672.75,1.10951005]
[1738080035168,0.27299697,673.54,672.75,1.10951005]
[1738080035363,0.27299697,673.55,672.56,1.10951005]
[1738080036664,0.29692974,673.56,672.56,1.10951005]
[1738080036858,0.27299837,673.55,672.56,1.10951005]
[1738080040466,0.27299837,673.55,672.36,1.10951005]
[1738080040467,0.27299837,673.55,672.54,1.10951005]
[1738080041963,0.273005,673.54,672.54,1.10951005]
[1738080042168,0.273005,673.55,672.54,1.10951005]
[1738080042363,0.273005,673.53,672.54,1.10951005]
[1738080042668,0.273005,673.52,672.54,1.10951005]
[1738080042866,0.29692974,673.56,672.54,1.10951005]
[1738080043069,0.27300534,673.55,672.54,1.10951005]
[1738080043370,0.27300534,673.55,672.5,1.10951005]
[1738080046773,0.27300534,673.55,672.04,1.33141206]
[1738080046774,0.29692974,673.56,672.38,1.10951005]
[1738080046968,0.27306746,673.55,672.38,1.10951005]
[1738080048571,0.2730621,673.54,672.38,1.10951005]
[1738080048768,0.2730621,673.53,672.38,1.10951005]
[1738080048973,0.2730621,673.55,672.38,1.10951005]
[1738080049173,0.2730621,673.54,672.38,1.10951005]
[1738080049374,0.2730621,673.55,672.38,1.10951005]
[1738080049575,0.2730621,673.54,672.38,1.10951005]
[1738080049875,0.2730621,673.53,672.18,1.10951005]
[1738080050071,0.27305974,673.52,672.18,1.10951005]
[1738080050273,0.29692974,673.56,672.18,1.10951005]
[1738080051478,0.27302463,673.55,672.18,1.10951005]
[1738080051777,0.29692974,673.56,672.18,1.10951005]
[1738080052776,0.27302249,673.55,672.18,1.10951005]
[1738080052975,0.29693856,673.54,672.21,1.10951005]
[1738080053178,0.27302243,673.53,672.21,1.10951005]
[1738080053479,0.29693856,673.54,672.21,1.10951005]
[1738080053680,0.29694738,673.52,672.21,1.10951005]
[1738080053977,0.27302476,673.51,672.21,1.10951005]
[1738080054174,0.29695619,673.5,672.21,1.10951005]
[1738080054383,0.27302476,673.49,672.21,1.10951005]
[1738080055184,0.29696501,673.48,672.21,1.10951005]
[1738080055387,0.27302476,673.47,672.21,1.10951005]
[1738080055588,0.29697383,673.46,672.22,1.10951005]
[1738080057781,0.27303194,673.45,672.22,1.10951005]
[1738080057980,0.29698265,673.44,672.22,1.10951005]
[1738080058590,0.27301734,673.43,672.22,1.10951005]
[1738080059088,0.27301734,673.43,672.19,1.10951005]
[1738080059589,0.29698265,673.44,672.19,1.10951005]
[1738080061686,0.29698265,673.44,671.63,1.95027591]
[1738080061687,0.29698265,673.44,672.46,1.10951005]
[1738080065393,0.29698265,673.44,672.5,1.10951005]
[1738080067789,0.29698265,673.44,672.57,1.10951005]
[1738080070493,0.29698265,673.44,672.48,1.10951005]
[1738080074301,0.29698265,673.44,672.53,1.10951005]
[1738080077098,0.29698265,673.44,672.44,1.10951005]
[1738080079402,0.27300262,673.43,672.44,1.10951005]
[1738080080101,0.29698265,673.44,672.44,1.10951005]
[1738080080705,0.29698265,673.44,672.42,1.10951005]
[1738080081601,0.27307736,673.43,672.42,1.10951005]
[1738080082108,0.29698265,673.44,672.42,1.10951005]
[1738080082707,0.27302591,673.43,672.42,1.10951005]
[1738080082900,0.29698265,673.44,672.42,1.10951005]
[1738080083909,0.29698265,673.44,672.14,1.10951005]
[1738080086113,0.29698265,673.44,672.42,1.10951005]
[1738080087011,0.29698265,673.44,671.84,1.95089786]
[1738080087210,0.29698265,673.44,670.47,5.14043999]
[1738080087511,0.29698265,673.44,671.86,0.29768106]
[1738080090118,0.29698265,673.44,672.66,1.10847573]
[1738080092618,0.29698265,673.44,672.34,1.10847573]
[1738080095517,0.29698265,673.44,672.28,1.10847573]
[1738080098921,0.27302749,673.43,672.23,1.10847573]
[1738080101120,0.2730515,673.42,672.23,1.10847573]
[1738080101322,0.2730515,673.43,672.23,1.10847573]
[1738080101530,0.2730515,673.42,672.31,1.10847573]
[1738080101723,0.2730515,673.43,672.31,1.10847573]
[1738080102025,0.2730515,673.42,672.31,1.10847573]
[1738080102230,0.2730515,673.43,672.31,1.10847573]
[1738080102731,0.29698265,673.44,672.31,1.10847573]
[1738080103030,0.27307247,673.43,672.31,1.10847573]